[Event "Srdja Dragasevic Memorial-A 2024"]
[Site "Cetinje"]
[Date "2024.06.26"]
[Round "6.15"]
[White "Atakisi, Umut"]
[Black "Pogorelskikh, Sergey"]
[Result "1-0"]
[ECO "E62"]
[WhiteElo "2335"]
[BlackElo "2196"]
[Annotator "RC"]
[PlyCount "137"]
[EventDate "2024.06.23"]
[EventType "swiss"]
[EventCountry "MNE"]
[SourceTitle "playchess.com"]
[Source "ChessBase"]
[SourceQuality "1"]
[TimeControl "40/5400+30:1800+30"]

1. c4 {[%emt 0:09:07]} g6 {[%emt 0:00:28]} 2. g3 {[%emt 0:00:11]} Bg7 {[%emt 0:00:08]} 3. Bg2 {[%emt 0:00:12]} Nf6 {[%emt 0:00:09]} 4. Nc3 {[%emt 0:00:16]} d6 {[%emt 0:00:44]} 5. d4 {[%emt 0:00:24]} O-O {[%emt 0:03:28]} 6. h3 {[%emt 0:03:37]} e5 {[%emt 0:01:39]} 7. Nf3 {[%emt 0:00:34]} Nc6 {[%emt 0:00:40]} 8. Be3 {[%emt 0:00:37]} Bd7 {[%emt 0:04:49]} 9. O-O {[%emt 0:02:34]} a5 {[%emt 0:03:19]} 10. b3 {[%emt 0:08:56]} Re8 {[%emt 0:02:11]} 11. dxe5 {[%emt 0:25:00]} dxe5 {[%emt 0:01:56]} 12. Ng5 {[%emt 0:02:19]} Qc8 {[%emt 0:03:40]} 13. Nd5 {[%emt 0:10:33]} Nd4 {[%emt 0:07:04]} 14. Bxd4 {[%emt 0:10:33]} exd4 {[%emt 0:01:38]} 15. Qxd4 {[%emt 0:00:11]} Ra6 {[%emt 0:14:25]} 16. Rad1 {[%emt 0:04:47]} Rd6 {[%emt 0:07:22]} 17. Qc5 {[%emt 0:01:22]} h6 {[%emt 0:06:54]} 18. Nf3 {[%emt 0:13:04]} Nxd5 {[%emt 0:02:08]} 19. cxd5 {[%emt 0:00:03]} Rxe2 {[%emt 0:03:06]} 20. a4 {[%emt 0:02:56]} b6 {[%emt 0:10:41]} 21. Qc4 {[%emt 0:00:01]} Re7 {[%emt 0:00:18]} 22. Rfe1 {[%emt 0:01:02]} Rxe1+ {[%emt 0:01:20]} 23. Rxe1 {[%emt 0:00:07]} Bxh3 {[%emt 0:03:28]} 24. Bxh3 {[%emt 0:00:50]} Qxh3 {[%emt 0:00:17]} 25. Qxc7 {[%emt 0:00:24]} Qd7 {[%emt 0:02:56]} 26. Qxd7 {[%emt 0:00:17]} Rxd7 {[%emt 0:00:05]} 27. Rd1 {[%emt 0:00:01]} f5 {[%emt 0:00:44]} 28. Rd3 {[%emt 0:00:47]} Kf7 {[%emt 0:03:02]} 29. Nd2 {[%emt 0:00:02]} Rb7 {[%emt 0:06:39]} 30. Nc4 {[%emt 0:00:06]} Rb8 {[%emt 0:00:06]} 31. Kg2 {[%emt 0:02:24]} g5 {[%emt 0:05:37]} 32. Nd6+ {[%emt 0:00:54]} Kg6 {[%emt 0:01:10]} 33. Re3 {[%emt 0:00:23]} f4 {[%emt 0:02:14]} 34. Re6+ {[%emt 0:00:28]} Kh7 {[%emt 0:00:07]} 35. Nf5 {[%emt 0:01:14]} Bf8 {[%emt 0:01:34]} 36. d6 {[%emt 0:00:41]} fxg3 {[%emt 0:01:01]} 37. fxg3 {[%emt 0:00:35]} g4 {[%emt 0:01:20]} 38. d7 {[%emt 0:01:16]} Rd8 {[%emt 0:00:05]} 39. Re8 {[%emt 0:00:12]} Rxd7 {[%emt 0:00:07]} 40. Rxf8 {[%emt 0:00:00]} Rd2+ {[%emt 0:00:00]} 41. Kf1 {[%emt 0:02:11]} Rd3 {[%emt 0:01:11]} 42. Rf6 {[%emt 0:02:00]} Rxb3 {[%emt 0:00:13]} 43. Rxh6+ {[%emt 0:00:24]} Kg8 {[%emt 0:00:04]} 44. Rg6+ {[%emt 0:00:17]} Kf7 {[%emt 0:00:10]} 45. Rxg4 {[%emt 0:00:09]} Rf3+ {[%emt 0:00:55]} 46. Ke2 {[%emt 0:00:10]} Rxf5 {[%emt 0:00:09]} 47. Rf4 {[%emt 0:02:09]} Rxf4 {[%emt 0:05:11]} 48. gxf4 {[%emt 0:00:08]} Ke6 {[%emt 0:01:09]} 49. Kd3 {[%emt 0:01:49]} Kd5 {[%emt 0:01:30]} 50. Ke3 {[%emt 0:02:07]} Kc5 {[%emt 0:04:03]} 51. f5 {[%emt 0:04:35]} Kd5 {[%emt 0:01:29]} 52. Kf4 {[%emt 0:01:43]} b5 {[%emt 0:00:54]} 53. f6 {[%emt 0:01:41]} Ke6 {[%emt 0:00:16]} 54. axb5 {[%emt 0:00:19]} a4 {[%emt 0:00:21]} 55. b6 {[%emt 0:00:06]} a3 {[%emt 0:00:05]} 56. b7 {[%emt 0:00:09]} a2 {[%emt 0:00:04]} 57. b8=Q {[%emt 0:00:04]} a1=Q {[%emt 0:00:22]} 58. Qe8+ {[%emt 0:00:34]} Kd6 {[%emt 0:01:04]} 59. Qe7+ {[%emt 0:00:22]} Kd5 {[%emt 0:00:10]} 60. Qd7+ {[%emt 0:01:09]} Kc5 {[%emt 0:00:11]} 61. Qe7+ {[%emt 0:06:08]} Kd5 {[%emt 0:00:10]} 62. Qd7+ {[%emt 0:01:19]} Kc5 {[%emt 0:00:07]} 63. f7 {[%emt 0:00:08]} Qf1+ {[%emt 0:03:18]} 64. Kg5 {[%emt 0:00:27]} Qc1+ {[%emt 0:03:42]} 65. Kg6 {[%emt 0:01:16]} Qg1+ {[%emt 0:00:26]} 66. Kf6 {[%emt 0:00:49]} Qa1+ {[%emt 0:00:17]} 67. Ke7 {[%emt 0:00:47]} Qe5+ {[%emt 0:03:09]} 68. Qe6 {[%emt 0:01:37]} Qg5+ {[%emt 0:01:22]} 69. Kd7 {[%emt 0:00:41]} 1-0

[Event "Srdja Dragasevic Memorial-A 2024"]
[Site "Cetinje"]
[Date "2024.06.26"]
[Round "6.16"]
[White "Slugin, Alexander"]
[Black "Vujosevic, Vladimir"]
[Result "0-1"]
[ECO "E04"]
[WhiteElo "2157"]
[BlackElo "2306"]
[Annotator "RC"]
[PlyCount "116"]
[EventDate "2024.06.23"]
[EventType "swiss"]
[EventCountry "MNE"]
[SourceTitle "playchess.com"]
[Source "ChessBase"]
[SourceQuality "1"]
[TimeControl "40/5400+30:1800+30"]

1. d4 {[%emt 0:46:37]} Nf6 {[%emt 0:00:25]} 2. Nf3 {[%emt 0:00:08]} d5 {[%emt 0:00:25]} 3. c4 {[%emt 0:00:06]} e6 {[%emt 0:00:35]} 4. g3 {[%emt 0:00:05]} dxc4 {[%emt 0:00:47]} 5. Bg2 {[%emt 0:00:21]} a6 {[%emt 0:00:55]} 6. Ne5 {[%emt 0:01:42]} c5 {[%emt 0:09:21]} 7. Be3 {[%emt 0:01:33]} Nd5 {[%emt 0:03:04]} 8. Nc3 {[%emt 0:02:13]} Nxe3 {[%emt 0:06:41]} 9. fxe3 {[%emt 0:00:22]} Be7 {[%emt 0:06:00]} 10. O-O {[%emt 0:00:53]} O-O {[%emt 0:00:28]} 11. Nxc4 {[%emt 0:04:46]} Nd7 {[%emt 0:04:27]} 12. Qd3 {[%emt 0:05:34]} Rb8 {[%emt 0:08:06]} 13. a4 {[%emt 0:00:13]} Qc7 {[%emt 0:05:28]} 14. d5 {[%emt 0:01:23]} Bf6 {[%emt 0:04:49]} 15. d6 {[%emt 0:17:44]} Qd8 {[%emt 0:01:56]} 16. Ne4 {[%emt 0:00:24]} b6 {[%emt 0:25:55]} 17. Rf4 {[%emt 0:02:46]} Bb7 {[%emt 0:04:07]} 18. Raf1 {[%emt 0:01:48]} Be5 {[%emt 0:01:49]} 19. Rh4 {[%emt 0:03:02]} f5 {[%emt 0:00:30]} 20. Nc3 {[%emt 0:00:41]} Bxg2 {[%emt 0:00:20]} 21. Kxg2 {[%emt 0:00:08]} Bf6 {[%emt 0:01:50]} 22. Rhf4 {[%emt 0:00:15]} b5 {[%emt 0:00:14]} 23. axb5 {[%emt 0:00:18]} axb5 {[%emt 0:00:15]} 24. Nd2 {[%emt 0:00:06]} Ne5 {[%emt 0:00:34]} 25. Qc2 {[%emt 0:00:20]} Qxd6 {[%emt 0:00:15]} 26. e4 {[%emt 0:00:10]} Bg5 {[%emt 0:02:46]} 27. exf5 {[%emt 0:00:59]} Bxf4 {[%emt 0:00:14]} 28. Rxf4 {[%emt 0:00:36]} exf5 {[%emt 0:01:53]} 29. Rxf5 {[%emt 0:00:25]} Ng4 {[%emt 0:00:48]} 30. Nf1 {[%emt 0:00:36]} Qc6+ {[%emt 0:01:08]} 31. Kg1 {[%emt 0:02:24]} Qe6 {[%emt 0:01:14]} 32. Rf3 {[%emt 0:00:43]} b4 {[%emt 0:00:41]} 33. Ne4 {[%emt 0:00:16]} Qd5 {[%emt 0:00:53]} 34. h3 {[%emt 0:03:11]} Ne5 {[%emt 0:02:18]} 35. Rf4 {[%emt 0:00:29]} Rxf4 {[%emt 0:00:47]} 36. gxf4 {[%emt 0:00:05]} Nd7 {[%emt 0:00:30]} 37. b3 {[%emt 0:00:20]} Rb6 {[%emt 0:00:53]} 38. Kf2 {[%emt 0:00:21]} Nf6 {[%emt 0:00:42]} 39. Nfd2 {[%emt 0:00:53]} Re6 {[%emt 0:01:35]} 40. Ng5 {[%emt 0:00:00]} Qd4+ {[%emt 0:00:00]} 41. Kf1 {[%emt 0:02:08]} Qxf4+ {[%emt 0:00:53]} 42. Ndf3 {[%emt 0:00:06]} Re5 {[%emt 0:01:16]} 43. h4 {[%emt 0:00:27]} h6 {[%emt 0:03:27]} 44. Nh3 {[%emt 0:00:45]} Qe4 {[%emt 0:00:20]} 45. Qa2 {[%emt 0:00:07]} Re8 {[%emt 0:00:27]} 46. Nf2 {[%emt 0:00:19]} Qe3 {[%emt 0:00:24]} 47. Qc2 {[%emt 0:01:03]} Nh5 {[%emt 0:00:39]} 48. Nd3 {[%emt 0:01:11]} Ng3+ {[%emt 0:00:24]} 49. Kg2 {[%emt 0:00:07]} Nxe2 {[%emt 0:00:33]} 50. Qc4+ {[%emt 0:00:16]} Kh8 {[%emt 0:00:30]} 51. Qf7 {[%emt 0:01:03]} Nd4 {[%emt 0:02:08]} 52. Nxd4 {[%emt 0:01:50]} cxd4 {[%emt 0:04:49]} 53. Nf4 {[%emt 0:00:07]} Qd2+ {[%emt 0:04:42]} 54. Kg3 {[%emt 0:00:13]} Re3+ {[%emt 0:00:17]} 55. Kg4 {[%emt 0:00:13]} Qd1+ {[%emt 0:00:21]} 56. Kf5 {[%emt 0:00:09]} Qc2+ {[%emt 0:00:11]} 57. Kg4 {[%emt 0:00:22]} Qc8+ {[%emt 0:00:11]} 58. Kh5 {[%emt 0:00:48]} Re5+ {[%emt 0:00:19]} 0-1

[Event "Srdja Dragasevic Memorial-A 2024"]
[Site "Cetinje"]
[Date "2024.06.26"]
[Round "6.18"]
[White "Nikolic, Nebojsa"]
[Black "Koljevic, Nikolina"]
[Result "1-0"]
[ECO "A06"]
[WhiteElo "2268"]
[BlackElo "2010"]
[Annotator "RC"]
[PlyCount "47"]
[EventDate "2024.06.23"]
[EventType "swiss"]
[EventCountry "MNE"]
[SourceTitle "playchess.com"]
[Source "ChessBase"]
[SourceQuality "1"]
[TimeControl "40/5400+30:1800+30"]

1. Nf3 {[%emt 0:05:15]} Nf6 {[%emt 0:00:11]} 2. b3 {[%emt 0:00:08]} d5 {[%emt 0:00:45]} 3. Bb2 {[%emt 0:00:15]} e6 {[%emt 0:00:47]} 4. e3 {[%emt 0:00:22]} Bd6 {[%emt 0:01:02]} 5. g4 {[%emt 0:02:50]} h6 {[%emt 0:03:18]} 6. Rg1 {[%emt 0:00:49]} Nbd7 {[%emt 0:03:13]} 7. h4 {[%emt 0:02:00]} e5 {[%emt 0:02:29]} 8. g5 {[%emt 0:02:19]} hxg5 {[%emt 0:00:55]} 9. hxg5 {[%emt 0:00:05]} Nh5 {[%emt 0:01:43]} 10. Be2 {[%emt 0:07:38]} g6 {[%emt 0:05:02]} 11. c4 {[%emt 0:01:13]} dxc4 {[%emt 0:02:06]} 12. Bxc4 {[%emt 0:03:37]} Qe7 {[%emt 0:01:17]} 13. Nc3 {[%emt 0:00:53]} c6 {[%emt 0:04:05]} 14. Ne4 {[%emt 0:02:03]} Ba3 {[%emt 0:04:25]} 15. Qc1 {[%emt 0:03:48]} Bxb2 {[%emt 0:01:59]} 16. Qxb2 {[%emt 0:00:10]} b5 {[%emt 0:00:46]} 17. Bf1 {[%emt 0:02:32]} Qb4 {[%emt 0:05:22]} 18. Rg4 {[%emt 0:03:15]} Nf4 {[%emt 0:09:59]} 19. Rxf4 {[%emt 0:01:03]} exf4 {[%emt 0:00:30]} 20. Qxh8+ {[%emt 0:00:08]} Ke7 {[%emt 0:00:17]} 21. Nf6 {[%emt 0:07:49]} Bb7 {[%emt 0:00:34]} 22. Qh4 {[%emt 0:00:13]} c5 {[%emt 0:00:32]} 23. Nxd7 {[%emt 0:04:49]} Bxf3 {[%emt 0:03:04]} 24. Ne5 {[%emt 0:49:16]} 1-0